Cogmind - Beta 11 @@@ ROGUE MODE // 2022.03.26 @ 20:42:12 Player: raddakar Result: Self-destructed Performance ------------- Evolutions (1) 500 Regions Visited (4) 800 Robots Destroyed (31) 155 Value Destroyed (443) 443 Prototype IDs (30) 600 Alien Tech Used (0) 0 Bonus (300) 300 TOTAL SCORE: 2798 Bonus ------- Aligned with FarCom 300 Cogmind --------- Core Integrity 346/400 Matter 300/300 Energy 125/125 System Corruption 0% Temperature Cool (0) Movement Treading (160) Location -9/Exiles Parts ------- > --- POWER (1) -------- Light Ion Engine > --- PROPULSION (4) --- Light Treads Light Treads Improved Treads Improved Treads > --- UTILITY (2) ------ High-capacity Storage Unit Structural Scanner > --- WEAPON (2) ------- Heavy EM Pulse Gun Rocket Launcher > --- INVENTORY (20) --- Light Treads Light Treads Light Treads Improved Treads Improved Treads Huge Storage Unit Huge Storage Unit High-powered Tractor Beam Heavy EM Pulse Gun Heavy EM Pulse Gun Improved Assault Rifle Improved Assault Rifle Improved Assault Rifle Improved Assault Rifle Improved Light Cannon Grenade Launcher Grenade Launcher Rocket Launcher Rocket Launcher Mining Laser Peak State ------------ > --- POWER ------------ Light Ion Engine > --- PROPULSION ------- Light Treads Light Treads Improved Treads Improved Treads > --- UTILITY ---------- Huge Storage Unit Structural Scanner > --- WEAPON ----------- Improved Medium Laser Improved Assault Rifle > --- INVENTORY -------- Light Treads Light Treads Light Treads Light Treads Improved Treads Improved Treads Huge Storage Unit High-powered Tractor Beam Improved Medium Laser Improved Assault Rifle Improved Assault Rifle Improved Assault Rifle Grenade Launcher Grenade Launcher Rocket Launcher Rocket Launcher Rocket Launcher Mining Laser [Rating: 18] Favorites ----------- Power Light Ion Engine Engine Light Ion Engine Propulsion Light Treads Treads Light Treads Leg Aluminum Leg Utility Structural Scanner Device Structural Scanner Storage High-capacity Storage Unit Weapon Rocket Launcher Energy Gun Heavy EM Pulse Gun Ballistic Gun Assault Rifle Launcher Rocket Launcher Build | -11 -10 -9 -9 -9 ------- Run | Scr Mat Mat Min Exi Slots Evolved 2 | . . 2 . . Power . | . . . . . Propulsion 2 | . . 2 . . Utility . | . . . . . Weapon . | . . . . . Parts Attached 23 | . 13 9 1 . Power . | . . . . . Engine . | . . . . . Core . | . . . . . Reactor . | . . . . . Propulsion 7 | . 4 3 . . Treads 7 | . 4 3 . . Leg . | . . . . . Wheel . | . . . . . Hover . | . . . . . Flight . | . . . . . Utility 8 | . 6 2 . . Device 3 | . 2 1 . . Storage 5 | . 4 1 . . Processor . | . . . . . Hackware . | . . . . . Protection . | . . . . . Artifact . | . . . . . Weapon 8 | . 3 4 1 . Energy Gun 3 | . . 3 . . Energy Cannon . | . . . . . Ballistic Gun 2 | . 1 1 . . Ballistic Cannon . | . . . . . Launcher 3 | . 2 . 1 . Special Weapon . | . . . . . Impact Weapon . | . . . . . Slashing Weapon . | . . . . . Piercing Weapon . | . . . . . Special Melee Weapon . | . . . . . Unidentified Prototypes 2 | . . 2 . . Parts Lost . | . . . . . Power . | . . . . . Propulsion . | . . . . . Utility . | . . . . . Weapon . | . . . . . Highest Loss Streak . | . . . . . To Critical Strikes . | . . . . . Average Slot Usage (%) 99 | . 98 98 100 100 Engine 12 | . 14 11 11 11 Treads 30 | . 12 44 44 44 Leg 6 | . 15 . . . Device 11 | . 13 9 11 11 Storage 12 | . 14 11 11 11 Energy Gun 11 | . 12 9 14 11 Ballistic Gun 5 | . 12 3 . . Launcher 6 | . 3 9 7 11 Naked Turns . | . . . . . Heaviest Build 92 | 12 92 92 51 51 Greatest Support 86 | 20 40 86 86 86 Greatest Overweight (x) 2 | . 2 1 . . Average Overweight (x) . | . . . . . Largest Inventory Capacity 25 | 8 25 25 20 20 Average Capacity 16 | 8 10 22 20 20 Most Carried 20 | 6 15 20 20 20 Average Carried 14 | 6 8 16 19 20 Final Capacity 25 | 8 25 20 20 20 Final Carried 20 | 6 15 20 20 20 Class Distribution -------------------- 100% | Mutant Dominant Class ---------------- Mutant | -10/Materials Mutant | -9/Materials Mutant | -9/Mines Mutant | -9/Exiles Resources | -11 -10 -9 -9 -9 ----------- Run | Scr Mat Mat Min Exi Matter Collected 602 | 200 208 162 32 . Remotely . | . . . . . Salvage Created 709 | . 385 107 217 . Parts 54 | . 18 16 20 . Haulers Intercepted 2 | . 2 . . . Recyclers Shooed 3 | . 3 . . . Parts Field Recycled . | . . . . . Retrieved Matter . | . . . . . Parts Self-Destructed . | . . . . . Prevented . | . . . . . Kills | -11 -10 -9 -9 -9 ------- Run | Scr Mat Mat Min Exi Combat Hostiles Destroyed 23 | . 4 8 11 . Guns 12 | . 3 1 8 . AOE 11 | . 1 7 3 . Classes Destroyed 8 | . 5 3 . . Builder 2 | . 1 . 1 . Tunneler 1 | . . 1 . . Hauler 2 | . 2 . . . Recycler 2 | . 1 . 1 . Operator 1 | . 1 . . . Swarmer 18 | . . 7 11 . Grunt 4 | . 4 . . . Sentry 1 | . . 1 . . Best Kill Streak 8 | . 2 8 4 . Combat Bots Only 7 | . 2 7 4 . Max Kills in Single Turn 4 | . 1 4 2 . Gunslinging . | . . . . . Exploded 4 | . 1 4 1 . Melee . | . . . . . Uniques/NPCs Destroyed . | . . . . . Combat | -11 -10 -9 -9 -9 -------- Run | Scr Mat Mat Min Exi Damage Taken 558 | . 228 95 235 . Core 120 | . 66 15 39 . Absorbed by Shields . | . . . . . Core Remaining (%) 86 | 100 73 . . . Volleys Fired 45 | . 29 5 11 . Largest 2 | . 2 2 2 . Hottest 90 | . 66 90 90 . Shots Fired 90 | . 58 10 22 . Gun 82 | . 56 6 20 . Cannon . | . . . . . Launcher 8 | . 2 4 2 . Special . | . . . . . Kinetic 28 | . 28 . . . Thermal . | . . . . . Explosive 8 | . 2 4 2 . Electromagnetic 54 | . 28 6 20 . Robot Hit Streak 7 | . 7 5 7 . Robot Miss Streak 4 | . 3 4 2 . Penetration Max . | . . . . . Secondary Targets 3 | . 1 . 2 . Max Gunslinging Chain 1 | . 1 . 1 . Shots Hit Robots 52 | . 34 5 13 . Core Hits 43 | . 16 14 13 . Critical Kills . | . . . . . Critical Parts Destroyed . | . . . . . Critical Strikes . | . . . . . Melee Attacks . | . . . . . Impact . | . . . . . Slashing . | . . . . . Piercing . | . . . . . Sneak Attacks . | . . . . . Combat Hostiles . | . . . . . Follow-up Attacks . | . . . . . Damage Inflicted 1373 | . 556 423 394 . Guns 666 | . 423 67 176 . Cannons . | . . . . . Explosions 648 | . 133 356 159 . Melee . | . . . . . Ramming 59 | . . . 59 . Kinetic 199 | . 199 . . . Thermal 115 | . 50 . 65 . Explosive 533 | . 83 356 94 . Electromagnetic 467 | . 224 67 176 . Impact . | . . . . . Slashing . | . . . . . Piercing . | . . . . . Highest Corruption . | . . . . . Average Corruption . | . . . . . Corruption Purged . | . . . . . Corruption Blocked . | . . . . . Overload Shots . | . . . . . Overflow Damage 20 | . . 20 . . Projectiles . | . . . . . Explosions 20 | . . 20 . . Melee . | . . . . . Knockbacks 2 | . . . 2 . Impact 2 | . . . 2 . Kinetic . | . . . . . Secondary . | . . . . . Self-Inflicted Damage 133 | . 62 . 71 . Shots 4 | . 2 . 2 . Rammed 3 | . . . 3 . Targets Rammed 5 | . . . 5 . Kicked . | . . . . . Crushed 2 | . . . 2 . Highest Temperature 117 | . 66 72 117 . Average Temperature 38 | . 28 37 48 . Received Heat Transfer 111 | . 93 18 . . Siege Activations . | . . . . . Robots Corrupted . | . . . . . Combat Hostiles . | . . . . . Parts Fried 2 | . 1 1 . . Impact Corruptions . | . . . . . Robots Melted . | . . . . . Combat Hostiles . | . . . . . Parts Melted . | . . . . . Heat Transferred 250 | . 100 . 150 . Parts Sabotaged . | . . . . . Parts Stolen . | . . . . . Parts Stripped . | . . . . . Power Chain Reactions 2 | . 1 . 1 . Missiles Intercepted . | . . . . . Alert | -11 -10 -9 -9 -9 ------- Run | Scr Mat Mat Min Exi Peak Influence 372 | . 157 305 372 . Initial 40 | . . 20 40 . Average 150 | . 61 199 264 . Maximum Alert Level 1 | . . 1 1 . Low Security (%) 63 | 100 100 32 26 . Level 1 36 | . . 67 73 . Level 2 . | . . . . . Level 3 . | . . . . . Level 4 . | . . . . . Level 5 . | . . . . . High Security . | . . . . . Max Security . | . . . . . Squads Dispatched . | . . . . . Investigation . | . . . . . Extermination . | . . . . . Reinforcement . | . . . . . Assault . | . . . . . Garrison . | . . . . . Intercept . | . . . . . Searches Triggered . | . . . . . Construction Impeded . | . . . . . Haulers Reinforced . | . . . . . Active Scanning Responses . | . . . . . Cargo Convoy Interrupts . | . . . . . Stealth | -11 -10 -9 -9 -9 --------- Run | Scr Mat Mat Min Exi Distress Signals . | . . . . . Communications Jammed . | . . . . . Distress Signals . | . . . . . Times Spotted 32 | . 14 8 10 . Peak Tracking Total 4 | . 3 3 4 . Tactical Retreats . | . . . . . Traps | -11 -10 -9 -9 -9 ------- Run | Scr Mat Mat Min Exi Traps Triggered . | . . . . . Indirectly . | . . . . . Trap Hack Attempts . | . . . . . Triggered . | . . . . . Disarmed 1 | . 1 . . . Reprogrammed . | . . . . . Reused . | . . . . . Traps Extracted . | . . . . . Installed . | . . . . . Triggered . | . . . . . Machines | -11 -10 -9 -9 -9 ---------- Run | Scr Mat Mat Min Exi Machines Disabled 2 | . 1 1 . . Max in Single Turn 1 | . 1 1 . . Machines Sabotaged . | . . . . . Garrisons Compromised . | . . . . . Overloaded Fab Kills . | . . . . . Hacking | -11 -10 -9 -9 -9 --------- Run | Scr Mat Mat Min Exi Machines Accessed 9 | . 7 1 . 1 Terminals 8 | . 7 1 . . Fabricators . | . . . . . Repair Stations . | . . . . . Recycling Units . | . . . . . Scanalyzers . | . . . . . Garrison Access . | . . . . . Total Hacks 23 | . 18 4 . 1 Successful 15 | . 13 1 . 1 Failed 8 | . 5 3 . . Catastrophic . | . . . . . Database Lockouts . | . . . . . Manual 1 | . . . . 1 Terminals 22 | . 18 4 . . Fabricators . | . . . . . Repair Stations . | . . . . . Recycling Units . | . . . . . Scanalyzers . | . . . . . Garrison Access . | . . . . . Terminal Hacks 15 | . 13 1 . 1 Record 1 | . 1 . . . Prototype ID Bank 3 | . 2 1 . . Branch Access Points 1 | . 1 . . . Terminal Index 1 | . 1 . . . Recycling Unit Index 1 | . 1 . . . Locate Traps 2 | . 2 . . . Disarm Traps 1 | . 1 . . . Dispatch Records 1 | . 1 . . . Maintenance Status 1 | . 1 . . . Hauler Manifests 1 | . 1 . . . Registered Components 1 | . 1 . . . EX-Prototype ID Bank 1 | . . . . 1 Fabricator Hacks . | . . . . . Repair Station Hacks . | . . . . . Recycling Unit Hacks . | . . . . . Scanalyzer . | . . . . . Garrison Access Hacks . | . . . . . Unauthorized Hacks . | . . . . . Terminals . | . . . . . Fabricators . | . . . . . Repair Stations . | . . . . . Recycling Units . | . . . . . Scanalyzers . | . . . . . Garrison Access . | . . . . . Data Cores Recovered 1 | . 1 . . . Used 1 | . 1 . . . Hacking Detections 7 | . 6 1 . . Full Trace Events . | . . . . . Feedback Events . | . . . . . Feedback Blocked . | . . . . . Robot Schematics Acquired . | . . . . . Robots Built . | . . . . . Authchips . | . . . . . Time . | . . . . . Total Robot Build Rating . | . . . . . Part Schematics Acquired . | . . . . . Parts Built . | . . . . . Authchips . | . . . . . Time . | . . . . . Total Part Build Rating . | . . . . . Parts Repaired . | . . . . . Time . | . . . . . Parts Recycled . | . . . . . Recycled Matter . | . . . . . Retrieved Matter . | . . . . . Retrieved Components . | . . . . . Parts Scanalyzed . | . . . . . Part Schematics Acquired . | . . . . . Parts Damaged . | . . . . . Bothacking | -11 -10 -9 -9 -9 ------------ Run | Scr Mat Mat Min Exi Used RIF Installer . | . . . . . Robots Hacked . | . . . . . Non-combat . | . . . . . Combat . | . . . . . Robot Hacks Applied . | . . . . . Relay Couplers Released . | . . . . . Fabnet Peak Effective % . | . . . . . Robots Rewired . | . . . . . Allies Hacked . | . . . . . Hacks Repelled . | . . . . . Allies | -11 -10 -9 -9 -9 -------- Run | Scr Mat Mat Min Exi Total Allies . | . . . . . Largest Group . | . . . . . Highest-Rated Group . | . . . . . Highest-Rated Ally . | . . . . . Total Orders . | . . . . . Ally Attacks . | . . . . . Total Damage . | . . . . . Kills . | . . . . . Allies Corrupted . | . . . . . Allies Melted . | . . . . . Intel | -11 -10 -9 -9 -9 ------- Run | Scr Mat Mat Min Exi Robot Analysis Total . | . . . . . Derelict Logs Recovered 1 | . . . 1 . Drone Launches . | . . . . . Drone Recoveries . | . . . . . Exploration | -11 -10 -9 -9 -9 ------------- Run | Scr Mat Mat Min Exi Turns Passed 2037 | 5 865 450 497 220 Spaces Moved 1143 | 5 516 201 284 137 Core . | . . . . . Treads 799 | . 177 201 284 137 Legs 344 | 5 339 . . . Wheels . | . . . . . Hover . | . . . . . Flight . | . . . . . Fastest Speed 120 | 120 120 160 160 160 Average Speed 156 | 120 138 196 160 160 Slowest Speed 320 | 120 320 240 160 160 Overloaded Moves . | . . . . . Propulsion Burnouts . | . . . . . Robots Hopped . | . . . . . Cave-ins Triggered . | . . . . . Exploration Rate (%) 35 | 2 71 21 41 42 Regions Visited 4 Branch Regions 2 Pre-discovered Areas 1 | . . . 1 . Known Exits Taken . | . . . . . Unknown Exits Taken 4 | 1 1 1 1 . Scrap Searched 1 | . . . 1 . Spaces Dug . | . . . . . Terrain Destroyed 66 | . 15 22 29 . Melee . | . . . . . Projectile . | . . . . . AOE 66 | . 15 22 29 . Terrain Rammed . | . . . . . Walls Destroyed . | . . . . . Machines Disabled . | . . . . . Actions | -11 -10 -9 -9 -9 --------- Run | Scr Mat Mat Min Exi Total 1310 | 4 616 249 304 137 Wait 26 | . 13 13 . . Move 1139 | 4 515 200 283 137 Hop . | . . . . . Pick Up 36 | . 24 10 2 . Fast Attach 8 | . 3 5 . . Attach 9 | . 5 3 1 . Detach 6 | . 3 3 . . Swap 6 | . 5 1 . . Drop 30 | . 19 9 2 . Fire 45 | . 29 5 11 . Melee . | . . . . . Ram . | . . . . . Kick . | . . . . . Crush 5 | . . . 5 . Escape Stasis . | . . . . . Rewire . | . . . . . Trap . | . . . . . Miscellaneous . | . . . . . Route ------- -11/Scrapyard -10/Materials (discovered 4 exits: *Mat x2 / *Min x2) -9/Materials -9/Mines (discovered 2 exits: [*Mat] / *Exi) -9/Exiles History --------- Turn | Location | Event 1 | -11/Scrapyard | Discovered new exit (range 2) 6 | -11/Scrapyard | Entered Materials 139 | -10/Materials | Discovered new exit (range 16) 159 | -10/Materials | Identified exit to Mines 312 | -10/Materials | Build established: Mutant 446 | -10/Materials | Discovered new exit (range 11) 723 | -10/Materials | Discovered new exit (range 16) 871 | -10/Materials | Entered another Materials area 871 | -9/Materials | Evolved 2 slots: Propulsion x2 987 | -9/Materials | Destroyed 7 combat bots 1245 | -9/Materials | Discovered new exit (range 13) 1321 | -9/Materials | Entered Mines 1424 | -9/Mines | Learned location of Storage (-9) 1435 | -9/Mines | Received a Rocket Launcher from a helpful Derelict 1668 | -9/Mines | Discovered new exit (range 11) 1807 | -9/Mines | Deemed a non-threat by the Exiles lab entrance 1809 | -9/Mines | Discovered new exit (range 5) 1818 | -9/Mines | Entered Exiles 1866 | -9/Exiles | Met 8R-AWN 1894 | -9/Exiles | Met EX-HEX 1946 | -9/Exiles | Met EX-BIN 1974 | -9/Exiles | Aligned with FarCom system 1975 | -9/Exiles | Given EX-Vault access code 2026 | -9/Exiles | Opened EX-Vault 2038 | -9/Exiles | Self-destructed Last Messages --------------- Modified TNC 0b10 Alert Chip Cloak of Protection Skeleton Box Trap Reconfigurator Supersonic Drone Bay Army-in-a-Box PSU Rigger Chronowheel AWS/Thermal Latent Energy Streamer Gui. Plasma Cannon Firepult YOLO Cannon AWS/Gauss XL Autogun Array AWS/Autocannon Field Lobotomy Kit Longsword +1 Deploy-a-Sentry Map ----- +----------------------------------------------------+ | | | | | | | | | | | | | | | | | | | | | | | | | | | | | | | | | | | | | | | | | | | ???????????????????###########???????????????????? | | ???????????????????## ##???????????????????? | | ???????????????????## ! ##???????????????????? | | ???????????????????## | ! ##???????????????????? | | ???????????????????## @ X##???????????????????? | | ???????????????????### ###???????????????????? | | ???????????????????##X ###???????????????????? | | ???????????????????### ##????????????????????? | | ???????????????????### ##?#####??????????????? | | ????????????????????## ##?#######????????????? | | ????????????????????## ##""""""##????????????? | | ????????????????????## ## """##????????????? | | ????????????????????## X""##????????????? | | ???????????????####### ## """##????????????? | | ???????????????####### ##""""""##????????????? | | ???????????????"""""## ##?#######????????????? | | ????????????##"""" ## ##?#####??????????????? | | ????????????##""X" ##????????????????????? | | ????????????##" ##????????????????????? | | ????????????##" ## ############??????????? | | ????????????##""""""## ############??????????? | | ????????????###"###### ###"""""""##??????????? | | ???????????????"###### ###"""""""##??????????? | | ???????????????????### ###"""""""##??????????? | | ???????????????????### ###"" """"##??????????? | | ???????????????????##" """"##??????????? | | ???????????????????##" """##??????????? | | ???????????????????##" """##??????????? | | ???????????????????##" """##??????????? | +----------------------------------------------------+ Best States ------------- Heat Dissipation 28 Energy Generation 10 Energy Capacity 125 Matter Stores 300 Matter Capacity 300 Sight Range 16 Terrain Scan Density 10 Evasion (%) 55 Recoil Reduction 4 Item Schematics ----------------- None Robot Schematics ------------------ None Fabricated ------------ Nothing Alien Tech Used ----------------- None Achievements -------------- None Challenges ------------ None Game ------ Seed QuantumEnhancedDatajack Manual? 0 Play Time 00:24:47 Cumulative 122.7 hours Start 2022.03.26 @ 20:15:22 End 2022.03.26 @ 20:42:12 Sessions 1 Manual Loads 0 Difficulty Rogue Special Mode None Game No. 58 Rogue 58 Adventurer 0 Explorer 0 Win Type - Total 1 Types 1/0/0/0/0/0/0/0/0 Lore% 31 Gallery% 56 Achievement% 42 Wizard Run 0 Options --------- ASCII 0 Keyboard 0 Movement Arrows Keybinds 0 Fullscreen 1 Font 18/Terminus Map View 76x50 Tactical HUD 1 Map Filters NONE Filters NONE Steam 1 RUN: e460d634-a42e-42b7-9fae-3cb6c98e50b4